Cogmind - Beta 17.1 @@@ ROGUE MODE // 2026.09.14 @ 00:38:02 Player: 7H-NLC Result: Destroyed by G-47 Trooper with Particle Gun Performance ------------- Evolutions (2) 1000 Regions Visited (5) 1000 Robots Destroyed (31) 155 Value Destroyed (919) 919 Prototype IDs (24) 480 Alien Tech Used (0) 0 Bonus (480) 480 TOTAL SCORE: 4034 Bonus ------- Follower Combat Kills 180 Aligned with FarCom 300 Cogmind --------- Core Integrity 0/550 Matter 69/300 Energy 98/100 System Corruption 0% Temperature Cool (19) Movement Treading (240) Ox1 Location -8/Materials Parts ------- > --- POWER (1) -------- (None) > --- PROPULSION (3) --- Light Treads > --- UTILITY (4) ------ High-capacity Storage Unit System Shield > --- WEAPON (3) ------- (None) > --- INVENTORY (20) --- Light Nuclear Core Light Nuclear Core Armored Treads Advanced Treads High-capacity Matter Pod (200) High-capacity Matter Pod (200) Experimental Sensor Array Seismic Detector Cloak of Protection Weapon Shielding Remote Shield Beamcaster AWS/Gauss Field Lobotomy Kit (5) Mining Laser Hammer Peak State ------------ > --- POWER ------------ Light Angular Momentum Engine > --- PROPULSION ------- Armored Wheel Armored Wheel > --- UTILITY ---------- High-capacity Storage Unit Experimental Sensor Array > --- WEAPON ----------- Heavy Assault Rifle Heavy Assault Rifle > --- INVENTORY -------- Armored Wheel Armored Wheel Armored Wheel Armored Wheel Armored Wheel High-capacity Matter Pod High-capacity Matter Pod Seismic Detector Targeting Computer Cloak of Protection Weapon Shielding Light Armor Plating Remote Shield Heavy Assault Rifle Heavy Assault Rifle AWS/Gauss Bore Cannon Field Lobotomy Kit Mining Laser [Rating: 29] Favorites ----------- Power Ion Engine Engine Ion Engine Power Core Light Nuclear Core Propulsion Armored Wheel Treads Advanced Treads Leg Aluminum Leg Wheel Armored Wheel Utility High-capacity Storage Unit Device Seismic Detector Storage High-capacity Storage Unit Processor Targeting Computer Hackware System Shield Protection Light Armor Plating Weapon Heavy Assault Rifle Energy Gun EM Pulse Gun Ballistic Gun Heavy Assault Rifle Ballistic Cannon Bore Cannon Special Weapon Mining Laser Build | -11 -10 -10 -10 -9 -8 ------- Run | Yrd Mat Min Exi Min Mat Slots Evolved 4 | . . . . . 4 Power . | . . . . . . Propulsion 1 | . . . . . 1 Utility 2 | . . . . . 2 Weapon 1 | . . . . . 1 Parts Attached 37 | 8 5 1 2 6 15 Power 6 | 1 . 1 . 1 3 Engine 3 | 1 . 1 . 1 . Core 3 | . . . . . 3 Reactor . | . . . . . . Propulsion 14 | 3 2 . . 2 7 Treads 3 | . . . . . 3 Leg 1 | 1 . . . . . Wheel 10 | 2 2 . . 2 4 Hover . | . . . . . . Flight . | . . . . . . Utility 9 | 2 1 . 1 1 4 Device 3 | 1 . . 1 . 1 Storage 2 | 1 1 . . . . Processor 1 | . . . . . 1 Hackware 1 | . . . . . 1 Protection 2 | . . . . 1 1 Artifact . | . . . . . . Weapon 8 | 2 2 . 1 2 1 Energy Gun 2 | 2 . . . . . Energy Cannon . | . . . . . . Ballistic Gun 4 | . 2 . . 2 . Ballistic Cannon 1 | . . . . . 1 Launcher . | . . . . . . Special Weapon 1 | . . . 1 . . Impact Weapon . | . . . . . . Slashing Weapon . | . . . . . . Piercing Weapon . | . . . . . . Special Melee Weapon . | . . . . . . Unidentified Prototypes 1 | . . . 1 . . Corrupted Parts 1 | 1 . . . . . System Corruption 2 | 2 . . . . . Parts Lost 16 | . 1 . . 2 13 Power 2 | . 1 . . . 1 Propulsion 7 | . . . . . 7 Utility 2 | . . . . . 2 Weapon 5 | . . . . 2 3 Highest Loss Streak 6 | . 1 . . 1 6 To Critical Strikes . | . . . . . . Average Backups 13 | . 6 11 16 18 17 Power . | . . . . . 1 Propulsion 4 | . 3 5 5 4 3 Utility 4 | . . 3 5 7 7 Weapon 3 | . 2 3 5 4 4 Tool/Special . | . . . . . . Unused Backups 14 | . 3 . . . 11 Power 1 | . . . . . 1 Propulsion 3 | . 2 . . . 1 Utility 6 | . 1 . . . 5 Weapon 3 | . . . . . 3 Tool/Special 1 | . . . . . 1 Average Slot Usage (%) 91 | . 99 98 88 97 66 Engine 11 | . 13 12 14 14 2 Wheel 26 | . 28 28 28 28 19 Device 9 | . 14 14 14 5 . Storage 13 | . 14 14 14 14 9 Hackware 1 | . . . . . 8 Protection 3 | . . . . 8 5 Energy Gun 2 | . 13 . . . . Ballistic Gun 18 | . 14 28 6 22 9 Special Weapon 2 | . . . 10 3 . Peak Build Rating 29 | 7 12 14 22 29 28 Average Rating 17 | 5 9 12 19 23 22 On Entrance 12 | . 7 11 14 22 22 Avg Prop Armor Cover (%) 15 | 8 . . . . 16 Naked Turns . | . . . . . . Heaviest Build 59 | 13 50 52 52 58 59 Greatest Support 36 | 32 32 24 24 24 36 Greatest Overweight (x) 4 | 1 2 2 2 2 4 Average Overweight (x) 1 | . . 1 1 1 1 Largest Inventory Capacity 20 | 8 20 20 20 20 20 Average Capacity 17 | 7 8 20 20 20 20 Most Carried 20 | 4 10 14 20 20 20 Average Carried 14 | . 6 11 17 19 18 Final Capacity 20 | 8 20 20 20 20 20 Final Carried 20 | 4 10 14 20 20 17 Class Distribution -------------------- 94% | Mutant 5% | Skirmisher Dominant Class ---------------- Mutant | -10/Materials Mutant | -10/Mines Mutant | -10/Exiles Mutant | -9/Mines Mutant | -8/Materials Resources | -11 -10 -10 -10 -9 -8 ----------- Run | Yrd Mat Min Exi Min Mat Matter Collected 1122 | 97 213 290 210 249 63 Remotely . | . . . . . . Salvage Created 1092 | 28 311 148 . 226 379 Parts 74 | 5 25 6 . 16 22 Haulers Intercepted 1 | . 1 . . . . Recyclers Shooed . | . . . . . . Parts Field Recycled . | . . . . . . Retrieved Matter . | . . . . . . Parts Self-Destructed . | . . . . . . Prevented . | . . . . . . Parts Restored . | . . . . . . Kills | -11 -10 -10 -10 -9 -8 ------- Run | Yrd Mat Min Exi Min Mat Combat Hostiles Destroyed 27 | . 6 3 . 7 11 Melee 1 | . . . . . 1 Guns 22 | . 5 3 . 7 7 Cannons 3 | . . . . . 3 Classes Destroyed 9 | 1 5 1 . 1 1 Builder 1 | . 1 . . . . Tunneler 1 | 1 . . . . . Hauler 1 | . 1 . . . . Watcher 1 | . 1 . . . . Swarmer 8 | . 3 . . 2 3 Grunt 16 | . 3 2 . 4 7 Protector 1 | . . . . 1 . Sentry 1 | . . 1 . . . Hunter 1 | . . . . . 1 Best Kill Streak 7 | 1 7 2 . 2 3 Combat Bots Only 3 | . 3 2 . 2 3 Max Kills in Single Turn 2 | 1 1 1 . 2 2 Gunslinging 1 | . . . . . 1 Exploded . | . . . . . . Melee 1 | . . . . . 1 Uniques/NPCs Destroyed . | . . . . . . Combat | -11 -10 -10 -10 -9 -8 -------- Run | Yrd Mat Min Exi Min Mat Hostile Shots Fired 398 | . 39 13 . 52 294 Missed 124 | . 17 3 . 18 86 Hits 274 | . 22 10 . 34 208 Projectile 274 | . 22 10 . 34 208 AOE 1 | . . . . 1 . Critical Strikes 6 | . . . . . 6 Damage Taken 3078 | . 238 137 . 460 2243 Core 665 | . 20 23 . 66 556 Absorbed by Shields . | . . . . . . Core Remaining (%) 78 | 100 . . . 56 . Volleys Fired 100 | 2 28 9 . 28 33 Largest 2 | 2 2 2 . 2 2 Hottest 100 | 80 80 46 . 100 48 Shots Fired 178 | 4 56 20 . 44 54 Gun 162 | 4 56 20 . 40 42 Cannon 12 | . . . . . 12 Launcher . | . . . . . . Special 4 | . . . . 4 . Kinetic 132 | . 18 20 . 40 54 Thermal 4 | . . . . 4 . Explosive . | . . . . . . Electromagnetic 42 | 4 38 . . . . Robot Hit Streak 8 | 4 8 4 . 6 8 Robot Miss Streak 4 | . 4 3 . 3 4 Penetration Max . | . . . . . . Secondary Targets 6 | . 1 1 . 2 2 Max Gunslinging Chain 1 | . 1 1 . 1 1 Shots Hit Robots 104 | 4 33 9 . 24 34 Core Hits 50 | 1 13 4 . 10 22 Critical Kills 2 | . . . . . 2 Critical Parts Destroyed 3 | . . . . . 3 Critical Strikes 6 | . 1 . . . 5 Destroy 5 | . . . . . 5 Corrupt 1 | . 1 . . . . Melee Attacks . | . . . . . . Impact . | . . . . . . Slashing . | . . . . . . Piercing . | . . . . . . Sneak Attacks . | . . . . . . Combat Hostiles . | . . . . . . Follow-up Attacks . | . . . . . . Damage Inflicted 1716 | 48 556 131 . 357 624 Guns 1439 | 48 471 131 . 357 432 Cannons 184 | . . . . . 184 Explosions 77 | . 77 . . . . Melee . | . . . . . . Ramming 16 | . 8 . . . 8 Kinetic 1234 | . 130 131 . 357 616 Thermal 77 | . 77 . . . . Explosive . | . . . . . . Electromagnetic 389 | 48 341 . . . . Impact . | . . . . . . Slashing . | . . . . . . Piercing . | . . . . . . Highest Corruption 4 | 2 4 4 4 4 . Average Corruption 3 | 2 2 4 4 4 . Corruption Purged . | . . . . . . Corruption Blocked . | . . . . . . Effects 51 | . 6 19 6 20 . Message Errors 14 | . 1 5 4 4 . Matter Fused 10 | . 3 2 1 4 . Heat Flow Errors 8 | . . 5 . 3 . Energy Discharges 5 | . 1 1 1 2 . Parts Rejected 1 | . . . . 1 . Data Loss (minor) 6 | . 1 3 . 2 . Data Loss (major) 2 | . . . . 2 . Misfires 3 | . . 2 . 1 . Alerts 1 | . . 1 . . . Weapon Failures 1 | . . . . 1 . Overload Shots . | . . . . . . Overflow Damage . | . . . . . . Projectiles . | . . . . . . Explosions . | . . . . . . Melee . | . . . . . . Knockbacks 1 | . . . . . 1 Impact . | . . . . . . Kinetic 1 | . . . . . 1 Secondary . | . . . . . . Self-Inflicted Damage 4 | . 4 . . . . Shots . | . . . . . . Rammed 4 | . 1 . . . 3 Targets Rammed 5 | . 1 . . . 4 Kicked . | . . . . . . Crushed 1 | . . . . . 1 Highest Temperature 265 | 18 153 265 . 234 238 Average Temperature 74 | 12 57 121 . 60 84 Received Heat Transfer 1065 | . 99 54 . 237 675 Siege Activations . | . . . . . . Martial Activations . | . . . . . . Shielding Activations . | . . . . . . Robots Disrupted . | . . . . . . Combat Hostiles . | . . . . . . Robots Corrupted 1 | . 1 . . . . Combat Hostiles 1 | . 1 . . . . Parts Fried 3 | . 3 . . . . Impact Corruptions . | . . . . . . Robots Melted . | . . . . . . Combat Hostiles . | . . . . . . Parts Melted 1 | . . . . 1 . Heat Transferred 100 | . 100 . . . . Parts Sabotaged . | . . . . . . Parts Stolen . | . . . . . . Parts Stripped . | . . . . . . Power Chain Reactions 2 | . 2 . . . . Alert | -11 -10 -10 -10 -9 -8 ------- Run | Yrd Mat Min Exi Min Mat Maximum Alert Level 1 | . . . . . 1 Low Security (%) 99 | 100 100 100 . 100 98 Level 1 . | . . . . . 1 Level 2 . | . . . . . . Level 3 . | . . . . . . Level 4 . | . . . . . . Level 5 . | . . . . . . High Security . | . . . . . . Max Security . | . . . . . . Peak Influence 219 | 5 95 76 . 137 219 Initial 1 | . . . . . 1 Average 38 | . 42 12 . 44 72 Influence Increases 1158 | 5 193 156 . 281 523 Destroy 0b10 Robot/C 640 | . 120 120 . 180 220 Destroy 0b10 Robot/NC 30 | 5 15 5 . 5 . Destroy Leader 114 | . 34 20 . 20 40 Allied During Kill 22 | . . 10 . 12 . Disable Machine 15 | . 15 . . . . Destroy Structure 22 | . 9 1 . 4 8 Lose Combat Pursuer 315 | . . . . 60 255 Influence Decreases 939 | 5 193 156 . 277 308 Entered New Map 3 | . . . . . 3 Time Decay 761 | 5 188 156 . 237 175 Lost Part 155 | . 5 . . 20 130 Lost Ally 20 | . . . . 20 . Squads Dispatched 6 | . 2 . . 1 3 Investigation 1 | . . . . . 1 Extermination . | . . . . . . Reinforcement 4 | . 2 . . . 2 Assault 1 | . . . . 1 . Garrison . | . . . . . . Intercept . | . . . . . . Searches Triggered . | . . . . . . Construction Impeded . | . . . . . . Haulers Reinforced . | . . . . . . Active Scanning Responses . | . . . . . . Cargo Convoy Interrupts . | . . . . . . Stealth | -11 -10 -10 -10 -9 -8 --------- Run | Yrd Mat Min Exi Min Mat Distress Signals 7 | . 2 . . 1 4 Communications Jammed . | . . . . . . Distress Signals . | . . . . . . Times Spotted 74 | . 18 6 . 11 39 Peak Tracking Total 12 | . 4 2 . 5 12 Tactical Retreats 6 | . . . . 2 4 Traps | -11 -10 -10 -10 -9 -8 ------- Run | Yrd Mat Min Exi Min Mat Traps Triggered 3 | . 1 . . . 2 Indirectly . | . . . . . . Trap Hack Attempts . | . . . . . . Triggered . | . . . . . . Disarmed . | . . . . . . Reprogrammed . | . . . . . . Reused . | . . . . . . Traps Extracted . | . . . . . . Installed . | . . . . . . Triggered . | . . . . . . Machines | -11 -10 -10 -10 -9 -8 ---------- Run | Yrd Mat Min Exi Min Mat Machines Disabled 1 | . 1 . . . . Max in Single Turn 1 | . 1 . . . . Machines Repaired . | . . . . . . Machines Dismantled . | . . . . . . Machines Sabotaged . | . . . . . . Overloaded Fab Kills . | . . . . . . Hacking | -11 -10 -10 -10 -9 -8 --------- Run | Yrd Mat Min Exi Min Mat Machines Accessed 2 | . . . 2 . . Terminals . | . . . . . . Fabricators . | . . . . . . Repair Stations . | . . . . . . Recycling Units . | . . . . . . Scanalyzers . | . . . . . . Garrison Access . | . . . . . . Total Hacks 2 | . . . 2 . . Successful 2 | . . . 2 . . Failed . | . . . . . . Catastrophic . | . . . . . . Database Lockouts . | . . . . . . Manual 1 | . . . 1 . . Terminals . | . . . . . . Fabricators . | . . . . . . Repair Stations . | . . . . . . Recycling Units . | . . . . . . Scanalyzers . | . . . . . . Garrison Access . | . . . . . . Terminal Hacks 2 | . . . 2 . . Record 1 | . . . 1 . . Proto ID Catalog 1 | . . . 1 . . Fabricator Hacks . | . . . . . . Repair Station Hacks . | . . . . . . Recycling Unit Hacks . | . . . . . . Scanalyzer . | . . . . . . Garrison Access Hacks . | . . . . . . Unauthorized Hacks . | . . . . . . Terminals . | . . . . . . Fabricators . | . . . . . . Repair Stations . | . . . . . . Recycling Units . | . . . . . . Scanalyzers . | . . . . . . Garrison Access . | . . . . . . Data Cores Recovered . | . . . . . . Used . | . . . . . . Hacking Detections . | . . . . . . Full Trace Events . | . . . . . . Feedback Events . | . . . . . . Feedback Blocked . | . . . . . . Robot Schematics Acquired . | . . . . . . Robots Built . | . . . . . . Authchips . | . . . . . . Time . | . . . . . . Total Robot Build Rating . | . . . . . . Part Schematics Acquired . | . . . . . . Parts Built . | . . . . . . Authchips . | . . . . . . Time . | . . . . . . Total Part Build Rating . | . . . . . . Part Studies Acquired . | . . . . . . Parts Repaired . | . . . . . . Time . | . . . . . . Parts Recycled . | . . . . . . Recycled Matter . | . . . . . . Retrieved Matter . | . . . . . . Retrieved Components . | . . . . . . Parts Scanalyzed . | . . . . . . Part Schematics Acquired . | . . . . . . Parts Damaged . | . . . . . . Bothacking | -11 -10 -10 -10 -9 -8 ------------ Run | Yrd Mat Min Exi Min Mat Used RIF Installer . | . . . . . . Robots Hacked . | . . . . . . Non-combat . | . . . . . . Combat . | . . . . . . Robot Hacks Applied . | . . . . . . Relay Couplers Released . | . . . . . . Fabnet Peak Effective % . | . . . . . . Robots Rewired . | . . . . . . Allies Hacked . | . . . . . . Hacks Repelled . | . . . . . . Allies | -11 -10 -10 -10 -9 -8 -------- Run | Yrd Mat Min Exi Min Mat Total Allies 4 | . . 3 . 1 . Largest Group 3 | . . 3 2 3 . Highest-Rated Group 63 | . . 40 32 63 . Highest-Rated Ally 31 | . . 16 16 31 . Total Orders . | . . . . . . Ally Attacks 41 | . . 18 . 23 . Total Damage 544 | . . 249 . 295 . Kills 8 | . . 4 . 4 . Allies Corrupted . | . . . . . . Allies Melted . | . . . . . . Intel | -11 -10 -10 -10 -9 -8 ------- Run | Yrd Mat Min Exi Min Mat Active Infowar (turns) 1680 | 3 425 738 280 234 . Sensors 457 | . . . 223 234 . Seismic 1223 | 3 425 738 57 . . Robot Analysis Total . | . . . . . . Derelict Logs Recovered 2 | . . 1 . 1 . Drone Launches . | . . . . . . Drone Recoveries . | . . . . . . Exploration | -11 -10 -10 -10 -9 -8 ------------- Run | Yrd Mat Min Exi Min Mat Turns Passed 2644 | 72 425 738 280 677 452 Spaces Moved 1991 | 52 334 586 252 485 282 Core 10 | 10 . . . . . Treads 2 | . . . . . 2 Legs . | . . . . . . Wheels 1979 | 42 334 586 252 485 280 Hover . | . . . . . . Flight . | . . . . . . Fastest Speed 50 | 50 90 105 105 105 105 Average Speed 112 | 94 95 119 107 118 115 Slowest Speed 240 | 100 120 120 120 120 240 Overloaded Moves . | . . . . . . Propulsion Burnouts . | . . . . . . Robots Hopped . | . . . . . . Potential Cave-ins . | . . . . . . Cave-ins Triggered . | . . . . . . Exploration Rate (%) 55 | 3 66 94 62 67 41 Regions Visited 5 Branch Regions 3 Pre-discovered Areas 2 | . . . 1 1 . Known Exits Taken . | . . . . . . Unknown Exits Taken 5 | 1 1 1 1 1 . Scrap Searched 2 | . . 1 . 1 . Spaces Dug 3 | . . . . 2 1 Terrain Destroyed 22 | . 9 . . 4 9 Melee . | . . . . . . Projectile 13 | . . . . 4 9 AOE 9 | . 9 . . . . Terrain Rammed . | . . . . . . Walls Destroyed . | . . . . . . Machines Disabled . | . . . . . . Actions | -11 -10 -10 -10 -9 -8 --------- Run | Yrd Mat Min Exi Min Mat Total 2203 | 68 388 607 259 533 348 Wait 29 | 1 6 8 1 3 10 Move 1986 | 51 333 585 251 484 282 Hop . | . . . . . . Pick Up 27 | 4 9 4 4 4 2 Fast Attach 13 | 8 . 1 . 1 3 Attach 9 | . . . . 3 6 Detach 2 | 1 . . 1 . . Swap 21 | . 5 . 2 7 7 Drop 11 | 1 6 . . 3 1 Fire 100 | 2 28 9 . 28 33 Melee . | . . . . . . Ram 2 | . 1 . . . 1 Kick . | . . . . . . Crush 3 | . . . . . 3 Escape Stasis . | . . . . . . Rewire . | . . . . . . Trap . | . . . . . . Miscellaneous . | . . . . . . Route ------- -11/Scrapyard -10/Materials (discovered 3 exits: [*Mat] / [*Min x2]) -10/Mines (discovered 4 exits: [*Mat x2] / *Exi / [*Sub]) -10/Exiles (discovered 2 exits: [*Min x2]) -9/Mines (discovered 2 exits: [*Mat x2]) -8/Materials (discovered 1 exit: Fac) History --------- Turn | Location | Event 22 | -11/Scrapyard | Discovered new exit (range 16) 73 | -11/Scrapyard | Entered Materials 86 | -10/Materials | Discovered new exit (range 15) 179 | -10/Materials | Discovered new exit (range 4) 314 | -10/Materials | Build established: Mutant 376 | -10/Materials | Discovered new exit (range 8) 498 | -10/Materials | Entered Mines 512 | -10/Mines | Deemed a non-threat by the Exiles lab entrance 512 | -10/Mines | Discovered new exit (range 5) 648 | -10/Mines | Found a Scrap Suit stashed away for nefarious purposes 675 | -10/Mines | Discovered new exit (range 8) 688 | -10/Mines | Assisted by bots powering up and referring to "LRC-V3" 801 | -10/Mines | Discovered new exit (range 9) 816 | -10/Mines | Learned 2 Materials zone layouts 946 | -10/Mines | A weapon hastily lodged in a ceiling crevice suddenly fell to the ground 1092 | -10/Mines | Found a damaged Exp. Sensor Array with a note attached 1095 | -10/Mines | Found Prototype Device 1103 | -10/Mines | Discovered new exit (range 8) 1236 | -10/Mines | Entered Exiles 1236 | -10/Exiles | Accompanied by 2 allies 1252 | -10/Exiles | Discovered new exit (range 15) 1266 | -10/Exiles | Met 8R-AWN 1286 | -10/Exiles | Met EX-HEX 1293 | -10/Exiles | Identified Exp. Sensor Array 1321 | -10/Exiles | Met EX-BIN 1335 | -10/Exiles | Aligned with FarCom system 1336 | -10/Exiles | Given EX-Vault access code 1361 | -10/Exiles | Opened EX-Vault 1369 | -10/Exiles | Found Field Lobotomy Kit 1371 | -10/Exiles | Found Cloak of Protection 1376 | -10/Exiles | Found AWS/Gauss 1397 | -10/Exiles | Warned to stay clear of 0b10 Research branches 1431 | -10/Exiles | Met EX-DEC 1442 | -10/Exiles | Learned location of Zion (-6) 1501 | -10/Exiles | Discovered new exit (range 10) 1516 | -10/Exiles | Stole three prototypes: Cloak of Protection, AWS/Gauss, Field Lobotomy Kit 1516 | -10/Exiles | Entered Mines 1516 | -9/Mines | Accompanied by 2 allies 1517 | -9/Mines | Met a Derelict testing a Signal Generator 1617 | -9/Mines | Learned Materials emergency access door positions 1656 | -9/Mines | Assembled infested the area 1661 | -9/Mines | Assisted by a Guerilla fighting off Assembled 1740 | -9/Mines | Learned location of Storage (-7) 2157 | -9/Mines | Discovered new exit (range 5) 2168 | -9/Mines | Discovered new exit (range 5) 2193 | -9/Mines | Entered Materials 2193 | -8/Materials | Evolved 4 slots: Propulsion x1, Utility x2, Weapon x1 2194 | -8/Materials | Identified exit to Factory 2474 | -8/Materials | Lost 5 parts (2n1u2w) 2570 | -8/Materials | Core integrity fell below 50% 2600 | -8/Materials | Lost 6 parts (1p3n1u1w) 2625 | -8/Materials | Core integrity fell below 20% 2645 | -8/Materials | Destroyed by G-47 Trooper with Particle Gun Last Messages --------------- 02569_ Arm. Wheel destroyed. 02605_ Critical hit (Burn: +37). 02607_ Arm. Wheel destroyed. 02607_ Triggered Alarm Trap. 02607_ An alarm sounds. 02607_ ALERT: Alarm triggered, dispatching investigation squad. 02634_ Acquired Unknown Treads. 02634_ Identified Lgt. Treads. 02638_ Slammed into S-10 Pest. 02640_ Crushed G-47 Trooper. 02640_ G-47 Trooper destroyed. 02640_ Triggered EMP Trap. 02640_ A bubble of electromagnetic force engulfs the area. 02640_ Arm. Wheel destroyed. 02640_ S-10 Pest destroyed. 02640_ Door malfunctions. 02640_ S-10 Pest destroyed. 02642_ K-01 Serf collects debris. 02643_ Slammed into G-47 Trooper. 02644_ Acquired 17 matter. Map ----- +----------------------------------------------------+ | ???????????????????????????????????????##### | | ???????????????????????????????????????????# | | ???????????????????????????????????????????# | | ???????????????????????????????????????????# | | ???????????????????????????????????????????? | | ????????????????????????????????????######## | | ?????????????????????????????##?????# | | ????????????????????????????? ?????# """ | | ?????????????????????????????# ?????# """ | | ?????????????????????????????# ###??# ! """ | | ?????????????????????????????# #??# | | ?????????????????????????????# + """ | | ?????????????????????????????# #### ! """ | | ?????????????????????????????# #??# """ | | ?????????????????????????????# #??# | | ?????????????????????????????# #??######/# | | ?????????????????????????????# ####### | | ?????????????????????????????# | | ?????????????????????????????+ | | ???+?????????????????????????# | | ?????????????????????????????# ####### | | ?????????????????????????????# #?????##### | | ????????#????????????????????# #?????????? | | ????????# ################## #?????????? | | # # [ u #?????????? | | # + @g=g*kYg #?????????? | | # # g [!gY* #?????????? | | # # ##########/######+####?????????? | | # # #??????# [ #? ???????????? | | # # #??????# #? +?+???????? | | # # #??????# #? #?????????? | | ######### #??????# """ #? ///#?????????? | | ????????# #??????# """ #? ///#?????????? | | ????????# #??????# """ #? ///#?????????? | | ????????# #??????#########+#####?????????? | | ????????# #??########????????????????????? | | ????????# < #??# #????????????????????? | | ????????# #??# #????????????????????? | | ????????#####??# #????????????????????? | | ???????????????#### ###??????????????????? | | ??????????????????# ??????????????????? | | ??????????????????# ??????????????????? | | ??????????????????# ??????????????????? | | ??????????????????# ??????????????????? | | ??????????????????#######??????????????????? | | ???????????????????????????????????????????? | | ???????????????????????????????????????????? | | ???????????????????????????????????????????? | | ???????????????????????????????????????????? | | | +----------------------------------------------------+ Best States ------------- Heat Dissipation 31 Energy Generation 18 Energy Capacity 250 Matter Stores 300 Matter Capacity 300 Sight Range 16 Robot Scan Range 20 Terrain Scan Density 10 Armor Coverage 150 Evasion (%) 42 Targeting Accuracy 5 Recoil Reduction 1 Defensive Hacking 10 Item Schematics ----------------- None Robot Schematics ------------------ None Fabricated ------------ Nothing Repaired ---------- Nothing Studied --------- None Alien Tech Used ----------------- None Achievements -------------- None Challenges ------------ None Game ------ Seed ImprinterCompactImpeller Manual? 0 Play Time 00:17:33 Cumulative 487.6 hours Start 2026.09.14 @ 00:20:45 End 2026.09.14 @ 00:38:02 Sessions 1 Manual Loads 0 Difficulty Rogue Special Mode None Game No. 357 Rogue 357 Adventurer 0 Explorer 0 Win Type - Total 10 Types 4/0/4/2/0/0/0/0/0/0 Lore% 63 Gallery% 72 Achievement% 59 Wizard Run 0 Options --------- Layout 2 ASCII 0 Keyboard 1 Movement Vi Keybinds 0 Fullscreen 2 Font 32/Smallcaps Map View 77x44 Zoom Use 0% Tactical HUD 1 Map Filters NONE Filters NONE Steam 1 RUN: a8bb4c12-395f-4575-abb8-0cf467589084